Cogmind - Beta 14 @@@ ROGUE MODE // 2025.03.20 @ 03:11:43 // Winter2019/RPGLIKE Player: k1ll3rb0t Result: Escaped! Performance ------------- Evolutions (9) 4500 Regions Visited (18) 3600 Robots Destroyed (72) 360 Value Destroyed (2544) 2544 Prototype IDs (45) 900 Alien Tech Used (0) 0 Bonus (6777) 6777 TOTAL SCORE: 18681 Bonus ------- High Alert Combat Kills 369 Follower Combat Kills 1430 Entered DSFs 500 Aligned with FarCom 300 Met Zhirov 300 Win 3000 Win Speed 878 Cogmind --------- Core Integrity 225/2400 Matter 422/500 Energy 213/225 System Corruption 0% Temperature Cool (36) Movement Flying (18) Location To Epsilon Eridani Parts ------- > --- POWER (2) -------- Compact Particle Reactor Light Quantum Reactor > --- PROPULSION (5) --- Improved Surge Thruster Cooled Cesium-ion Thruster Field Propulsion Drive Q-thruster Q-thruster > --- UTILITY (6) ------ Advanced Terrain Scanner Advanced Terrain Scan Processor Improved Transmission Jammer Centrium Medium Armor Plating Improved Hacking Suite Advanced Hacking Suite > --- WEAPON (4) ------- Powered Hammer Great Axe Great Axe Carbide Saw > --- INVENTORY (5) ---- Advanced Actuator Array Improved Reaction Control System Micro-nuke Launcher Advanced Datajack Peak State ------------ > --- POWER ------------ Compact Particle Reactor Light Quantum Reactor > --- PROPULSION ------- Improved Surge Thruster Cooled Cesium-ion Thruster Field Propulsion Drive Q-thruster Q-thruster > --- UTILITY ---------- Advanced Terrain Scanner Advanced Terrain Scan Processor Improved Transmission Jammer Centrium Medium Armor Plating Improved Hacking Suite Advanced Hacking Suite > --- WEAPON ----------- Powered Hammer Great Axe Great Axe Carbide Saw > --- INVENTORY -------- Advanced Actuator Array Improved Reaction Control System Micro-nuke Launcher Advanced Datajack [Rating: 105] Favorites ----------- Power Compact Particle Reactor Engine Improved Ion Engine Power Core Fission Core Reactor Compact Particle Reactor Propulsion Xenon Bombardment Thruster Treads Light Treads Hover Unit Aerolev Unit Flight Unit Xenon Bombardment Thruster Utility Advanced Terrain Scan Processor Device Advanced Terrain Scanner Storage Experimental Energy Well Processor Advanced Terrain Scan Processor Hackware Improved System Shield Protection Centrium Medium Armor Plating Weapon Great Axe Energy Gun Medium Laser Ballistic Gun Heavy Assault Rifle Ballistic Cannon Heavy Gauss Cannon Launcher Rocket Launcher Special Weapon Field Lobotomy Kit Impact Weapon Powered Hammer Slashing Weapon Great Axe Special Melee Weapon Advanced Datajack Build | -11 -10 -10 -10 -9 -8 -7 -6 -6 -6 -6 -6 -5 -4 -4 -3 -3 -2 -1 ------- Run | Yrd Mat Min Exi Min Mat Fac Fac Ext Cet Arc Hub Fac Fac DSF Res Arm Res Acc Slots Evolved 13 | 2 . . . 1 1 1 1 1 1 . . 2 . . . 1 . 2 Power 1 | . . . . . . . . . . . . . . . . . . 1 Propulsion 4 | 1 . . . 1 . . . . . . . 1 . . . . . 1 Utility 5 | . . . . . . 1 1 1 1 . . . . . . 1 . . Weapon 3 | 1 . . . . 1 . . . . . . 1 . . . . . . Parts Attached 154 | 8 2 8 . 2 7 4 21 9 20 4 6 19 1 2 1 19 3 18 Power 12 | 2 . 1 . 1 . 1 1 . 1 1 . 2 . . . . . 2 Engine 5 | 2 . 1 . 1 . 1 . . . . . . . . . . . . Core 1 | . . . . . . . 1 . . . . . . . . . . . Reactor 6 | . . . . . . . . . 1 1 . 2 . . . . . 2 Propulsion 29 | 2 . 3 . 1 1 . 5 . 3 . . 6 . . . 6 . 2 Treads 3 | 2 . . . . . . . . 1 . . . . . . . . . Leg . | . . . . . . . . . . . . . . . . . . . Wheel . | . . . . . . . . . . . . . . . . . . . Hover 1 | . . . . . . . 1 . . . . . . . . . . . Flight 25 | . . 3 . 1 1 . 4 . 2 . . 6 . . . 6 . 2 Utility 50 | 1 2 . . . 2 3 5 5 6 2 4 6 . 1 1 6 1 5 Device 34 | 1 2 . . . 1 2 3 4 4 1 3 3 . 1 1 5 . 3 Storage 1 | . . . . . . . . . . 1 . . . . . . . . Processor 5 | . . . . . . . 1 1 . . . 1 . . . 1 1 . Hackware 5 | . . . . . 1 1 1 . 1 . . . . . . . . 1 Protection 5 | . . . . . . . . . 1 . 1 2 . . . . . 1 Artifact . | . . . . . . . . . . . . . . . . . . . Weapon 63 | 3 . 4 . . 4 . 10 4 10 1 2 5 1 1 . 7 2 9 Energy Gun 4 | 3 . . . . . . . . 1 . . . . . . . . . Energy Cannon . | . . . . . . . . . . . . . . . . . . . Ballistic Gun 6 | . . 3 . . . . 1 . 2 . . . . . . . . . Ballistic Cannon 1 | . . . . . . . . . . . . . . . . 1 . . Launcher 17 | . . 1 . . 2 . 2 1 2 . 1 2 . . . 2 1 3 Special Weapon 5 | . . . . . 1 . 1 2 1 . . . . . . . . . Impact Weapon 16 | . . . . . . . 3 1 4 1 1 2 . . . 2 1 1 Slashing Weapon 7 | . . . . . 1 . 3 . . . . . . . . 1 . 2 Piercing Weapon . | . . . . . . . . . . . . . . . . . . . Special Melee Weapon 7 | . . . . . . . . . . . . 1 1 1 . 1 . 3 Unidentified Prototypes 10 | . . . . . . . 2 . 4 2 . 2 . . . . . . Parts Lost 4 | . . . . . . . . . . . . 2 . . . 2 . . Power . | . . . . . . . . . . . . . . . . . . . Propulsion 3 | . . . . . . . . . . . . 2 . . . 1 . . Utility 1 | . . . . . . . . . . . . . . . . 1 . . Weapon . | . . . . . . . . . . . . . . . . . . . Highest Loss Streak 2 | . . . . . . . . . . . . 2 . . . 1 . . To Critical Strikes . | . . . . . . . . . . . . . . . . . . . Average Slot Usage (%) 98 | . 100 100 100 100 98 83 97 100 98 100 100 96 100 100 100 99 100 99 Engine 5 | . 16 16 16 14 13 11 1 . . . . . . . . . . . Core 2 | . . . . . . . 8 9 . . . . . . . . . . Reactor 2 | . . . . . . . . . 7 8 8 7 7 7 7 6 6 11 Treads 5 | . 33 17 . . . . . . . . . . . . . . . . Flight 24 | . . 15 33 42 41 33 30 28 24 25 25 22 28 28 28 26 26 26 Device 12 | . 16 16 16 14 4 2 10 9 8 8 7 5 7 7 7 15 20 17 Processor 7 | . . . . . . . 10 12 16 16 16 13 14 14 14 13 13 10 Hackware 7 | . . . . . 9 14 10 9 14 16 16 14 14 14 14 8 6 5 Energy Gun 4 | . 33 13 . . . . . . . . . . . . . . . . Ballistic Gun 3 | . . 11 16 14 12 . . . . . . . . . . . . . Launcher 4 | . . 8 16 14 13 11 . 5 . . . 1 . . . . . . Impact Weapon 3 | . . . . . . . 8 3 6 8 7 5 7 7 7 6 6 5 Slashing Weapon 11 | . . . . . 1 11 18 19 16 16 16 14 14 14 14 17 20 13 Peak Build Rating 105 | 6 6 9 10 11 21 26 45 51 63 63 63 71 75 75 75 85 86 105 Average Rating 41 | 4 6 7 9 10 13 23 39 47 56 59 59 64 74 74 75 80 85 99 On Entrance 43 | . 6 6 9 10 11 21 26 45 50 59 59 59 71 75 75 75 85 86 Naked Turns . | . . . . . . . . . . . . . . . . . . . Heaviest Build 52 | 9 9 15 15 18 22 23 26 27 37 33 30 37 25 26 26 34 30 52 Greatest Support 58 | 40 40 40 8 22 22 22 33 33 33 33 33 44 44 50 44 52 46 58 Greatest Overweight (x) 3 | . . 3 1 . . 1 1 . 1 . . 1 . . . . . . Average Overweight (x) . | . . . 1 . . . . . . . . . . . . . . . Largest Inventory Capacity 5 | 3 3 3 3 3 3 3 3 4 4 4 4 4 4 5 5 5 5 5 Average Capacity 3 | 2 3 3 3 3 3 3 3 3 4 4 4 4 4 4 5 5 5 5 Most Carried 5 | 3 3 3 3 3 3 3 3 4 4 4 4 4 4 5 5 5 5 5 Average Carried 3 | 1 2 2 2 2 2 2 2 3 3 4 4 3 3 4 5 4 5 4 Final Capacity 5 | 3 3 3 3 3 3 3 3 4 4 4 4 4 4 5 5 5 5 5 Final Carried 5 | 3 3 3 3 2 3 3 3 4 4 4 4 4 4 5 5 5 5 4 Class Distribution -------------------- 25% | Hacker-Scout 17% | Mutant 14% | Scavenger-Mutant 11% | Hacker-Ninja 8% | Wizard-Scout 7% | Hacker-Gladiator 6% | Hacker-Sprinter 3% | Wizard-Sprinter Dominant Class ---------------- Mutant | -10/Materials Mutant | -10/Mines Scavenger-Mutant | -10/Exiles Scavenger-Scout | -9/Mines Hacker-Mutant | -8/Materials Hacker-Gladiator | -7/Factory Hacker-Scout | -6/Factory Hacker-Scout | -6/Extension Hacker-Scout | -6/Cetus Hacker-Sprinter | -6/Archives Wizard-Scout | -6/Hub_04(d) Wizard-Scout | -5/Factory Wizard-Scout | -4/Factory Wizard-Scout | -4/DSF Wizard-Scout | -3/Research Hacker-Ninja | -3/Armory Hacker-Ninja | -2/Research Hacker-Ninja | -1/Access Resources | -11 -10 -10 -10 -9 -8 -7 -6 -6 -6 -6 -6 -5 -4 -4 -3 -3 -2 -1 ----------- Run | Yrd Mat Min Exi Min Mat Fac Fac Ext Cet Arc Hub Fac Fac DSF Res Arm Res Acc Matter Collected 2540 | 268 10 125 . 84 . 128 147 578 180 64 74 125 . 187 . 177 . 393 Remotely . | . . . . . . . . . . . . . . . . . . . Salvage Created 2048 | 18 10 14 . 121 1 15 279 392 96 . 126 370 . 113 . 261 . 232 Parts 107 | 5 3 5 . 13 5 2 4 10 2 . 3 24 . 7 . 14 . 10 Haulers Intercepted 3 | . . . . . . . 2 . . . . . . . . . . 1 Recyclers Shooed 1 | . . . . . 1 . . . . . . . . . . . . . Parts Field Recycled . | . . . . . . . . . . . . . . . . . . . Retrieved Matter . | . . . . . . . . . . . . . . . . . . . Parts Self-Destructed . | . . . . . . . . . . . . . . . . . . . Prevented . | . . . . . . . . . . . . . . . . . . . Kills | -11 -10 -10 -10 -9 -8 -7 -6 -6 -6 -6 -6 -5 -4 -4 -3 -3 -2 -1 ------- Run | Yrd Mat Min Exi Min Mat Fac Fac Ext Cet Arc Hub Fac Fac DSF Res Arm Res Acc Combat Hostiles Destroyed 52 | . . 4 . 6 4 . 1 7 1 . 1 10 . 1 . 5 . 12 Melee 8 | . . . . . . . . . 1 . 1 2 . . . 3 . 1 Guns 2 | . . 1 . 1 . . . . . . . . . . . . . . AOE 40 | . . 3 . 5 4 . . 7 . . . 8 . . . 2 . 11 Classes Destroyed 17 | 1 1 2 . 3 . . 3 1 . . . 2 . 1 . 3 . . Worker 3 | . . . . 2 . . . . . . . . . . . . . 1 Builder 2 | . . . . . . . 1 1 . . . . . . . . . . Tunneler 2 | 1 . . . . . 1 . . . . . . . . . . . . Hauler 3 | . . . . . . . 2 . . . . . . . . . . 1 Recycler 4 | . . . . . . . . 3 . . . 1 . . . . . . Operator 2 | . 1 . . . . . . . . . . 1 . . . . . . Watcher 4 | . . . . . . . 2 . . . 1 1 . . . . . . Swarmer 31 | . . 3 . 4 4 . . 5 . . . 4 . . . . . 11 Cutter 1 | . . . . . . . . . . . . . . . . 1 . . Saboteur 1 | . . . . . . . . . . . . . . . . 1 . . Grunt 5 | . . . . 1 . . . 2 . . . 1 . . . . . 1 Brawler 1 | . . . . 1 . . . . . . . . . . . . . . Sentry 3 | . . 1 . . . . 1 . . . 1 . . . . . . . Specialist 2 | . . . . . . . . . . . . . . 1 . 1 . . Hunter 4 | . . . . . . . . . . . . 3 . . . 1 . . Programmer 2 | . . . . . . . . . . . . 2 . . . . . . Heavy 1 | . . . . . . . . . . . . . . . . 1 . . Cetus Guard 1 | . . . . . . . . . 1 . . . . . . . . . Best Kill Streak 10 | 1 1 3 . 5 4 1 3 6 1 . 2 10 . 1 . 2 . 8 Combat Bots Only 8 | . . 3 . 4 4 . 1 5 1 . 1 8 . 1 . 2 . 6 Max Kills in Single Turn 5 | 1 1 3 . 4 2 1 1 2 1 . 1 5 . 1 . 1 . 4 Gunslinging . | . . . . . . . . . . . . . . . . . . . Exploded 3 | . . 3 . 3 2 . . 2 . . . 3 . . . 1 . 3 Melee 1 | . . . . . . . . . 1 . 1 1 . . . 1 . 1 Uniques/NPCs Destroyed . | . . . . . . . . . . . . . . . . . . . Combat | -11 -10 -10 -10 -9 -8 -7 -6 -6 -6 -6 -6 -5 -4 -4 -3 -3 -2 -1 -------- Run | Yrd Mat Min Exi Min Mat Fac Fac Ext Cet Arc Hub Fac Fac DSF Res Arm Res Acc Hostile Shots Fired 389 | . . 5 . 7 3 . 36 15 . 1 52 77 . 1 . 150 . 42 Missed 214 | . . 3 . 4 . . 20 6 . 1 30 33 . . . 97 . 20 Damage Taken 3665 | . . 20 . 104 24 . 301 168 . 31 368 833 85 84 . 1195 . 452 Core 2967 | . . 15 . 84 20 . 241 150 . 24 316 624 68 67 . 998 . 360 Absorbed by Shields 33 | . . . . . . . . . . . . . . . . 33 . . Redirected to Core 2216 | . . 15 . 66 12 . 207 63 . 24 189 440 68 67 . 725 . 340 Regen/Repaired (Parts) 34 | . . . . . . . . . . . . 9 . . . . . 25 Core Remaining (%) 50 | 100 . . . 86 84 85 . . . . 57 34 . 23 . 4 24 9 Volleys Fired 69 | 1 5 4 . 8 3 . 3 15 3 . 1 8 . . . 7 1 10 Largest 2 | 2 2 2 . 1 1 . 1 1 1 . 1 1 . . . 1 1 1 Hottest 90 | 90 90 70 . 33 33 . 39 39 35 . 39 39 . . . 61 39 39 Shots Fired 78 | 2 10 7 . 8 3 . 3 15 3 . 1 8 . . . 7 1 10 Gun 22 | 2 10 6 . 3 . . . . 1 . . . . . . . . . Cannon 2 | . . . . . . . . . . . . . . . . 2 . . Launcher 49 | . . 1 . 5 3 . 2 13 . . 1 8 . . . 5 1 10 Special 5 | . . . . . . . 1 2 2 . . . . . . . . . Kinetic 10 | . . 4 . 3 . . . . 1 . . . . . . 2 . . Thermal 14 | 2 10 2 . . . . . . . . . . . . . . . . Explosive 49 | . . 1 . 5 3 . 2 13 . . 1 8 . . . 5 1 10 Electromagnetic . | . . . . . . . . . . . . . . . . . . . Robot Hit Streak 8 | 1 3 2 . 7 . . 8 6 8 . . 2 . . . 2 . . Robot Miss Streak 4 | . 2 1 . . . . 1 . . . . 2 . . . 2 . 4 Penetration Max . | . . . . . . . . . . . . . . . . . . . Secondary Targets . | . . . . . . . . . . . . . . . . . . . Shots Hit Robots 109 | 1 5 5 . 5 . 2 15 9 4 . 11 21 . 1 . 21 . 9 Core Hits 127 | 1 2 4 . 11 5 . 3 30 1 . 3 22 . . . 16 . 29 Critical Kills 1 | . . . . . . . . . . . 1 . . . . . . . Critical Parts Destroyed 5 | . . . . . . . 1 1 . . . 1 . 1 . 1 . . Critical Strikes 13 | 1 . . . . . . 4 1 . . 1 2 . 1 . 2 . 1 Burn 1 | 1 . . . . . . . . . . . . . . . . . . Smash 6 | . . . . . . . 1 1 . . 1 1 . 1 . 1 . . Sever 6 | . . . . . . . 3 . . . . 1 . . . 1 . 1 Melee Attacks 148 | . . . . . . 2 21 5 4 . 14 28 . 1 . 39 . 34 Impact 72 | . . . . . . . 5 4 3 . 9 15 . 1 . 18 . 17 Slashing 64 | . . . . . . 2 16 1 1 . 5 12 . . . 12 . 15 Piercing . | . . . . . . . . . . . . . . . . . . . Sneak Attacks 20 | . . . . . . 1 2 2 . . . 1 . 1 . 11 . 2 Combat Hostiles 3 | . . . . . . . . . . . . . . 1 . 2 . . Follow-up Attacks 14 | . . . . . . . 2 1 1 . 3 3 . . . 3 . 1 Damage Inflicted 8708 | 13 60 196 . 403 273 146 1077 1907 84 . 446 1614 . 84 . 776 . 1629 Guns 164 | 13 60 48 . 43 . . . . . . . . . . . . . . Cannons . | . . . . . . . . . . . . . . . . . . . Explosions 5310 | . . 148 . 360 273 . 279 1701 . . . 860 . . . 442 . 1247 Melee 3234 | . . . . . . 146 798 206 84 . 446 754 . 84 . 334 . 382 Ramming . | . . . . . . . . . . . . . . . . . . . Kinetic 67 | . . 24 . 43 . . . . . . . . . . . . . . Thermal 240 | 13 60 24 . . . . 143 . . . . . . . . . . . Explosive 5167 | . . 148 . 360 273 . 136 1701 . . . 860 . . . 442 . 1247 Electromagnetic . | . . . . . . . . . . . . . . . . . . . Impact 1477 | . . . . . . . 131 174 39 . 347 389 . 84 . 130 . 183 Slashing 1757 | . . . . . . 146 667 32 45 . 99 365 . . . 204 . 199 Piercing . | . . . . . . . . . . . . . . . . . . . Highest Corruption 5 | . . . . . . . . . . . . 1 . . . 5 . . Average Corruption 1 | . . . . . . . . . . . . 1 . . . 3 . . Corruption Purged . | . . . . . . . . . . . . . . . . . . . Corruption Blocked . | . . . . . . . . . . . . . . . . . . . Overload Shots . | . . . . . . . . . . . . . . . . . . . Overflow Damage 817 | . . 22 . 8 . 92 166 173 . . 45 147 . 84 . 43 . 37 Projectiles . | . . . . . . . . . . . . . . . . . . . Explosions 163 | . . 22 . 8 . . 73 29 . . . 3 . . . . . 28 Melee 654 | . . . . . . 92 93 144 . . 45 144 . 84 . 43 . 9 Knockbacks 7 | . . . . . . . 1 2 . . . . . . . 1 . 3 Impact 7 | . . . . . . . 1 2 . . . . . . . 1 . 3 Kinetic . | . . . . . . . . . . . . . . . . . . . Secondary . | . . . . . . . . . . . . . . . . . . . Self-Inflicted Damage 84 | . . . . 84 . . . . . . . . . . . . . . Shots 2 | . . . . 2 . . . . . . . . . . . . . . Rammed . | . . . . . . . . . . . . . . . . . . . Targets Rammed . | . . . . . . . . . . . . . . . . . . . Kicked . | . . . . . . . . . . . . . . . . . . . Crushed . | . . . . . . . . . . . . . . . . . . . Highest Temperature 90 | 30 90 9 . 6 . . 9 2 . . . . . . . . . 45 Average Temperature 24 | 18 41 6 . 5 . . 9 2 . . . . . . . . . 19 Received Heat Transfer 252 | . . 9 . . . . 54 9 . 12 69 45 . . . 18 . 36 Siege Activations . | . . . . . . . . . . . . . . . . . . . Robots Corrupted 5 | . . . . . . . 2 2 . . . . . 1 . . . . Combat Hostiles 2 | . . . . . . . 1 . . . . . . 1 . . . . Parts Fried 10 | . . . . . . . 3 3 . . 3 1 . . . . . . Impact Corruptions 18 | . . . . . . . 2 4 . . 3 6 . 1 . 1 . 1 Robots Melted . | . . . . . . . . . . . . . . . . . . . Combat Hostiles . | . . . . . . . . . . . . . . . . . . . Parts Melted 1 | 1 . . . . . . . . . . . . . . . . . . Heat Transferred 446 | 111 161 74 . . . . 100 . . . . . . . . . . . Parts Sabotaged . | . . . . . . . . . . . . . . . . . . . Parts Stolen . | . . . . . . . . . . . . . . . . . . . Parts Stripped . | . . . . . . . . . . . . . . . . . . . Power Chain Reactions . | . . . . . . . . . . . . . . . . . . . Alert | -11 -10 -10 -10 -9 -8 -7 -6 -6 -6 -6 -6 -5 -4 -4 -3 -3 -2 -1 ------- Run | Yrd Mat Min Exi Min Mat Fac Fac Ext Cet Arc Hub Fac Fac DSF Res Arm Res Acc Peak Influence 898 | 5 32 119 . 215 244 134 366 894 734 493 265 779 318 140 78 662 386 898 Initial 485 | . 3 12 . . 83 110 65 79 485 293 165 129 318 120 78 40 347 231 Average 277 | . 26 40 . 162 209 120 216 444 650 376 215 507 271 138 78 272 351 585 Maximum Alert Level 3 | . . . . 1 1 . 1 3 3 2 1 3 1 . . 2 1 3 Low Security (%) 50 | 100 100 100 . 69 19 100 41 46 . . 40 13 31 100 100 27 . . Level 1 24 | . . . . 30 80 . 58 7 . 61 59 27 68 . . 51 100 22 Level 2 12 | . . . . . . . . 7 62 38 . 33 . . . 20 . 30 Level 3 13 | . . . . . . . . 37 37 . . 25 . . . . . 47 Level 4 . | . . . . . . . . . . . . . . . . . . . Level 5 . | . . . . . . . . . . . . . . . . . . . High Security . | . . . . . . . . . . . . . . . . . . . Max Security . | . . . . . . . . . . . . . . . . . . . Squads Dispatched 24 | . 1 . . . 1 . 1 5 . . 2 3 . . . 5 1 5 Investigation 4 | . . . . . 1 . . 1 . . . . . . . . . 2 Extermination 3 | . . . . . . . . . . . . 1 . . . 1 . 1 Reinforcement 14 | . 1 . . . . . 1 3 . . 2 2 . . . 4 1 . Assault 3 | . . . . . . . . 1 . . . . . . . . . 2 Garrison . | . . . . . . . . . . . . . . . . . . . Intercept . | . . . . . . . . . . . . . . . . . . . Searches Triggered . | . . . . . . . . . . . . . . . . . . . Construction Impeded 3 | . . . . . . . 1 2 . . . . . . . . . . Haulers Reinforced 1 | . . . . . . . . . . . . 1 . . . . . . Active Scanning Responses . | . . . . . . . . . . . . . . . . . . . Cargo Convoy Interrupts . | . . . . . . . . . . . . . . . . . . . Stealth | -11 -10 -10 -10 -9 -8 -7 -6 -6 -6 -6 -6 -5 -4 -4 -3 -3 -2 -1 --------- Run | Yrd Mat Min Exi Min Mat Fac Fac Ext Cet Arc Hub Fac Fac DSF Res Arm Res Acc Distress Signals 13 | . . . . . 2 . . 2 2 1 2 2 . . . 1 . 1 Communications Jammed 29 | . . . . . . . . . . . . . . . . 15 . 14 Distress Signals 20 | . . . . . . . . . . . . . . . . 7 . 13 Times Spotted 156 | . 2 4 . 6 6 1 10 19 10 7 11 25 . 1 . 30 . 24 Peak Tracking Total 14 | . 1 3 . 4 5 1 4 6 5 5 5 11 . 1 . 14 . 7 Tactical Retreats 15 | . . . . . . . 1 2 . . 1 4 . . . 4 . 3 Traps | -11 -10 -10 -10 -9 -8 -7 -6 -6 -6 -6 -6 -5 -4 -4 -3 -3 -2 -1 ------- Run | Yrd Mat Min Exi Min Mat Fac Fac Ext Cet Arc Hub Fac Fac DSF Res Arm Res Acc Traps Triggered 8 | . . . . . . . . 3 . . . 1 1 . . 2 . 1 Indirectly . | . . . . . . . . . . . . . . . . . . . Trap Hack Attempts . | . . . . . . . . . . . . . . . . . . . Triggered . | . . . . . . . . . . . . . . . . . . . Disarmed . | . . . . . . . . . . . . . . . . . . . Reprogrammed . | . . . . . . . . . . . . . . . . . . . Reused . | . . . . . . . . . . . . . . . . . . . Traps Extracted . | . . . . . . . . . . . . . . . . . . . Installed . | . . . . . . . . . . . . . . . . . . . Triggered . | . . . . . . . . . . . . . . . . . . . Machines | -11 -10 -10 -10 -9 -8 -7 -6 -6 -6 -6 -6 -5 -4 -4 -3 -3 -2 -1 ---------- Run | Yrd Mat Min Exi Min Mat Fac Fac Ext Cet Arc Hub Fac Fac DSF Res Arm Res Acc Machines Disabled 23 | . . . . 1 1 . 3 4 . 3 . 3 . . . 7 . 1 Max in Single Turn 3 | . . . . 1 1 . 3 1 . . . 3 . . . 2 . 1 Garrison Access 2 | . . . . . . . . . . . . . 1 . . . . 1 Machines Repaired . | . . . . . . . . . . . . . . . . . . . Machines Dismantled . | . . . . . . . . . . . . . . . . . . . Machines Sabotaged . | . . . . . . . . . . . . . . . . . . . Overloaded Fab Kills . | . . . . . . . . . . . . . . . . . . . Hacking | -11 -10 -10 -10 -9 -8 -7 -6 -6 -6 -6 -6 -5 -4 -4 -3 -3 -2 -1 --------- Run | Yrd Mat Min Exi Min Mat Fac Fac Ext Cet Arc Hub Fac Fac DSF Res Arm Res Acc Machines Accessed 49 | . 3 . 1 . 5 2 9 6 2 . 5 2 3 . . 4 . 7 Terminals 41 | . 3 . . . 4 2 7 6 2 . 5 1 2 . . 4 . 5 Fabricators 1 | . . . . . . . 1 . . . . . . . . . . . Repair Stations 2 | . . . . . . . . . . . . 1 . . . . . 1 Recycling Units . | . . . . . . . . . . . . . . . . . . . Scanalyzers 2 | . . . . . 1 . 1 . . . . . . . . . . . Garrison Access 2 | . . . . . . . . . . . . . 1 . . . . 1 Total Hacks 159 | . 6 . 1 . 13 8 34 16 11 . 16 8 12 . . 15 . 19 Successful 93 | . 3 . 1 . 10 7 19 5 4 . 8 6 11 . . 7 . 12 Failed 66 | . 3 . . . 3 1 15 11 7 . 8 2 1 . . 8 . 7 Catastrophic 11 | . . . . . 1 . 4 . . . 1 . . . . 2 . 3 Database Lockouts . | . . . . . . . . . . . . . . . . . . . Manual 34 | . . . 1 . 1 1 5 1 1 . 9 3 2 . . 4 . 6 Terminals 143 | . 6 . . . 10 8 29 16 11 . 16 6 10 . . 15 . 16 Fabricators 1 | . . . . . . . 1 . . . . . . . . . . . Repair Stations 4 | . . . . . . . . . . . . 2 . . . . . 2 Recycling Units . | . . . . . . . . . . . . . . . . . . . Scanalyzers 7 | . . . . . 3 . 4 . . . . . . . . . . . Garrison Access 3 | . . . . . . . . . . . . . 2 . . . . 1 Terminal Hacks 77 | . 3 . 1 . 7 6 16 4 4 . 7 4 10 . . 7 . 8 Record 7 | . . . . . 1 . 1 . 3 . . . . . . 1 . 1 Part Schematic 2 | . . . . . . . 1 . . . . . 1 . . . . . Robot Analysis 2 | . . . . . 1 . 1 . . . . . . . . . . . Prototype ID Bank 4 | . . . . . . . 2 . . . 1 . . . . 1 . . Open Door 7 | . . . . . . . . 4 1 . . . . . . 1 . 1 Open DSF 1 | . . . . . . . . . . . . . 1 . . . . . Level Access Points 4 | . . . . . . . . . . . 1 1 . . . 1 . 1 Branch Access Points 4 | . . . . . . 1 1 . . . . . . . . 1 . 1 Emergency Access Points 2 | . 1 . . . . . . . . . . . . . . 1 . . Terminal Index 2 | . . . . . . . 1 . . . . . 1 . . . . . Repair Station Index 1 | . . . . . . . . . . . . . 1 . . . . . Alert Level 5 | . . . . . . . 1 . . . . 2 1 . . . . 1 Unreport Threat 3 | . . . . . . . 1 . . . . 1 1 . . . . . Locate Traps 7 | . 2 . . . 1 1 1 . . . 1 . 1 . . . . . Maintenance Status 1 | . . . . . . 1 . . . . . . . . . . . . Security Status 2 | . . . . . . . . . . . . . 1 . . 1 . . Transport Status 2 | . . . . . . . 1 . . . 1 . . . . . . . Recall Extermination 1 | . . . . . . . . . . . . . . . . . . 1 Recall Reinforcements 2 | . . . . . . . 1 . . . 1 . . . . . . . Recall Assault 2 | . . . . . . . . . . . . . . . . . . 2 Hauler Manifests 4 | . . . . . . 1 1 . . . 1 . 1 . . . . . Registered Components 4 | . . . . . 1 1 1 . . . 1 . . . . . . . Registered Prototypes 1 | . . . . . 1 . . . . . . . . . . . . . Zone Layout 6 | . . . . . 2 1 2 . . . . . 1 . . . . . Derelict Proto ID Bank 1 | . . . 1 . . . . . . . . . . . . . . . Fabricator Hacks 1 | . . . . . . . 1 . . . . . . . . . . . Network Status 1 | . . . . . . . 1 . . . . . . . . . . . Repair Station Hacks 4 | . . . . . . . . . . . . 2 . . . . . 2 Scan Component 2 | . . . . . . . . . . . . 1 . . . . . 1 Repair 2 | . . . . . . . . . . . . 1 . . . . . 1 Recycling Unit Hacks . | . . . . . . . . . . . . . . . . . . . Scanalyzer 5 | . . . . . 3 . 2 . . . . . . . . . . . Insert Component 3 | . . . . . 2 . 1 . . . . . . . . . . . Analyze 2 | . . . . . 1 . 1 . . . . . . . . . . . Garrison Access Hacks 2 | . . . . . . . . . . . . . 1 . . . . 1 Seal Access 2 | . . . . . . . . . . . . . 1 . . . . 1 Unauthorized Hacks 4 | . . . . . . 1 . 1 . . 1 . . . . . . 1 Terminals 4 | . . . . . . 1 . 1 . . 1 . . . . . . 1 Assimilate 4 | . . . . . . 1 . 1 . . 1 . . . . . . 1 Fabricators . | . . . . . . . . . . . . . . . . . . . Repair Stations . | . . . . . . . . . . . . . . . . . . . Recycling Units . | . . . . . . . . . . . . . . . . . . . Scanalyzers . | . . . . . . . . . . . . . . . . . . . Garrison Access . | . . . . . . . . . . . . . . . . . . . Data Cores Recovered 1 | . . . . . . . . . . . . 1 . . . . . . Used . | . . . . . . . . . . . . . . . . . . . Hacking Detections 34 | . 1 . . . 5 2 6 4 2 . 3 1 1 . . 3 . 6 Full Trace Events 3 | . . . . . 1 . . . . . . . . . . . . 2 Feedback Events . | . . . . . . . . . . . . . . . . . . . Feedback Blocked . | . . . . . . . . . . . . . . . . . . . Robot Schematics Acquired . | . . . . . . . . . . . . . . . . . . . Robots Built . | . . . . . . . . . . . . . . . . . . . Authchips . | . . . . . . . . . . . . . . . . . . . Time . | . . . . . . . . . . . . . . . . . . . Total Robot Build Rating . | . . . . . . . . . . . . . . . . . . . Part Schematics Acquired 4 | . . . . . 1 . 2 . . . . . 1 . . . . . Parts Built . | . . . . . . . . . . . . . . . . . . . Authchips . | . . . . . . . . . . . . . . . . . . . Time . | . . . . . . . . . . . . . . . . . . . Total Part Build Rating . | . . . . . . . . . . . . . . . . . . . Parts Repaired 2 | . . . . . . . . . . . . 1 . . . . . 1 Time 70 | . . . . . . . . . . . . 44 . . . . . 26 Parts Recycled . | . . . . . . . . . . . . . . . . . . . Recycled Matter . | . . . . . . . . . . . . . . . . . . . Retrieved Matter . | . . . . . . . . . . . . . . . . . . . Retrieved Components . | . . . . . . . . . . . . . . . . . . . Parts Scanalyzed 2 | . . . . . 1 . 1 . . . . . . . . . . . Part Schematics Acquired 2 | . . . . . 1 . 1 . . . . . . . . . . . Parts Damaged . | . . . . . . . . . . . . . . . . . . . Bothacking | -11 -10 -10 -10 -9 -8 -7 -6 -6 -6 -6 -6 -5 -4 -4 -3 -3 -2 -1 ------------ Run | Yrd Mat Min Exi Min Mat Fac Fac Ext Cet Arc Hub Fac Fac DSF Res Arm Res Acc Used RIF Installer . | . . . . . . . . . . . . . . . . . . . Robots Hacked 3 | . . . . . . . . . . . . 1 . . . . . 2 Non-combat 3 | . . . . . . . . . . . . 1 . . . . . 2 Combat . | . . . . . . . . . . . . . . . . . . . Robot Hacks Applied 3 | . . . . . . . . . . . . 1 . . . . . 2 find_chute 1 | . . . . . . . . . . . . 1 . . . . . . find_fabricator 1 | . . . . . . . . . . . . . . . . . . 1 find_station 1 | . . . . . . . . . . . . . . . . . . 1 Relay Couplers Released . | . . . . . . . . . . . . . . . . . . . Fabnet Peak Effective % . | . . . . . . . . . . . . . . . . . . . Robots Rewired 6 | . . . . . . . . . . . . . . . . 6 . . Allies Hacked . | . . . . . . . . . . . . . . . . . . . Hacks Repelled . | . . . . . . . . . . . . . . . . . . . Allies | -11 -10 -10 -10 -9 -8 -7 -6 -6 -6 -6 -6 -5 -4 -4 -3 -3 -2 -1 -------- Run | Yrd Mat Min Exi Min Mat Fac Fac Ext Cet Arc Hub Fac Fac DSF Res Arm Res Acc Total Allies 21 | . . . . . . 1 1 9 2 . 1 . . . . 6 . 1 Largest Group 10 | . . . . . . 1 2 10 7 4 1 . . . . 4 . 1 Highest-Rated Group 458 | . . . . . . 10 95 452 458 289 26 . . . . 192 . 26 Highest-Rated Ally 85 | . . . . . . 10 85 85 85 85 26 . . . . 56 . 26 Total Orders 2 | . . . . . . . . . 2 . . . . . . . . . STAY 1 | . . . . . . . . . 1 . . . . . . . . . FOLLOW 1 | . . . . . . . . . 1 . . . . . . . . . Ally Attacks 165 | . . . . . . . 8 80 23 27 . . . . . 27 . . Total Damage 4895 | . . . . . . . 488 1681 707 1325 . . . . . 694 . . Kills 48 | . . . . . . . 9 24 6 6 . . . . . 3 . . Allies Corrupted . | . . . . . . . . . . . . . . . . . . . Allies Melted 1 | . . . . . . . . . . 1 . . . . . . . . Field Lobotomies 5 | . . . . . . . 1 2 2 . . . . . . . . . Intel | -11 -10 -10 -10 -9 -8 -7 -6 -6 -6 -6 -6 -5 -4 -4 -3 -3 -2 -1 ------- Run | Yrd Mat Min Exi Min Mat Fac Fac Ext Cet Arc Hub Fac Fac DSF Res Arm Res Acc Robot Analysis Total 2 | . . . . . 1 . 1 . . . . . . . . . . . Derelict Logs Recovered 3 | . . 2 . 1 . . . . . . . . . . . . . . Drone Launches . | . . . . . . . . . . . . . . . . . . . Drone Recoveries . | . . . . . . . . . . . . . . . . . . . Exploration | -11 -10 -10 -10 -9 -8 -7 -6 -6 -6 -6 -6 -5 -4 -4 -3 -3 -2 -1 ------------- Run | Yrd Mat Min Exi Min Mat Fac Fac Ext Cet Arc Hub Fac Fac DSF Res Arm Res Acc Turns Passed 5102 | 131 214 1008 280 65 91 184 743 607 332 68 150 283 38 23 20 358 76 431 Spaces Moved 7331 | 72 121 704 239 134 207 410 1438 735 509 151 304 358 122 64 67 586 106 1004 Core 7 | 3 . . . . . . . . 3 . . 1 . . . . . . Treads 510 | 69 121 320 . . . . . . . . . . . . . . . . Legs . | . . . . . . . . . . . . . . . . . . . Wheels . | . . . . . . . . . . . . . . . . . . . Hover . | . . . . . . . . . . . . . . . . . . . Flight 6814 | . . 384 239 134 207 410 1438 735 506 151 304 357 122 64 67 586 106 1004 Fastest Speed 18 | 50 160 117 117 34 34 34 32 32 32 32 32 26 27 20 27 20 27 18 Average Speed 47 | 155 160 137 117 34 34 40 33 32 39 32 32 32 27 25 27 25 27 26 Slowest Speed 300 | 160 160 300 117 34 34 114 114 32 120 32 32 112 27 34 27 27 27 27 Overloaded Moves 207 | . . . . . . . . . . . . 20 . 26 . 104 . 57 Propulsion Burnouts 1 | . . . . . . . . . . . . . . . . 1 . . Robots Hopped 49 | . . . . 3 . . 13 12 18 1 . 2 . . . . . . Cave-ins Triggered . | . . . . . . . . . . . . . . . . . . . Exploration Rate (%) 38 | 6 35 96 62 27 22 16 29 61 83 86 35 18 3 73 1 49 4 30 Regions Visited 18 Branch Regions 8 Pre-discovered Areas 1 | . . 1 . . . . . . . . . . . . . . . . Known Exits Taken 6 | . . . . . 1 . 1 . . . 1 1 1 . . 1 . . Unknown Exits Taken 11 | 1 1 1 1 1 . 1 . 1 1 1 . . . . 1 . 1 . Scrap Searched 3 | . . 1 . 2 . . . . . . . . . . . . . . Spaces Dug 54 | . . . . . . . 17 . 4 . 1 7 . . . 11 . 14 Terrain Destroyed 501 | . . 15 . 61 10 . 58 99 4 . 14 71 . . . 54 13 102 Melee 36 | . . . . . . . 3 . 2 . 1 7 . . . 9 . 14 Projectile 4 | . . . . . . . . . 2 . . . . . . 2 . . AOE 461 | . . 15 . 61 10 . 55 99 . . 13 64 . . . 43 13 88 Terrain Rammed . | . . . . . . . . . . . . . . . . . . . Walls Destroyed . | . . . . . . . . . . . . . . . . . . . Machines Disabled . | . . . . . . . . . . . . . . . . . . . Actions | -11 -10 -10 -10 -9 -8 -7 -6 -6 -6 -6 -6 -5 -4 -4 -3 -3 -2 -1 --------- Run | Yrd Mat Min Exi Min Mat Fac Fac Ext Cet Arc Hub Fac Fac DSF Res Arm Res Acc Total 8553 | 87 131 740 240 141 224 424 1653 1065 607 167 334 467 127 67 67 746 150 1116 Wait 758 | . 2 10 . . . 3 161 247 82 13 15 51 . . . 75 41 58 Move 7233 | 71 120 703 238 127 206 409 1414 715 482 148 303 354 121 63 66 585 105 1003 Hop 30 | . . . . 3 . . 10 7 8 1 . 1 . . . . . . Pick Up 32 | 4 1 2 1 . 2 2 6 2 2 . . 1 2 1 . 4 . 2 Fast Attach 41 | 7 . 4 . . 3 2 3 1 3 . . 8 . 1 . 5 . 4 Attach 12 | . . . . 1 1 1 1 . 3 . . 3 . . . 1 . 1 Detach 6 | . . . . . 1 1 1 . 1 . . 2 . . . . . . Swap 101 | 1 2 4 . 1 3 1 17 8 14 4 6 8 1 1 1 13 3 13 Drop 57 | 3 1 7 1 1 5 3 12 1 4 . . 4 3 . . 9 . 3 Fire 69 | 1 5 4 . 8 3 . 3 15 3 . 1 8 . . . 7 1 10 Melee 111 | . . . . . . 2 16 4 3 . 9 23 . 1 . 31 . 22 Ram . | . . . . . . . . . . . . . . . . . . . Kick . | . . . . . . . . . . . . . . . . . . . Crush . | . . . . . . . . . . . . . . . . . . . Escape Stasis 53 | . . . . . . . . 45 . . . . . . . 8 . . Rewire . | . . . . . . . . . . . . . . . . . . . Trap . | . . . . . . . . . . . . . . . . . . . Miscellaneous 50 | . . 6 . . . . 9 20 2 1 . 4 . . . 8 . . Route ------- -11/Scrapyard -10/Materials -10/Mines (discovered 3 exits: [*Mat x2] / *Exi) -10/Exiles -9/Mines -8/Materials (discovered 2 exits: *Fac x2) -7/Factory (discovered 3 exits: *Fac / *Low x2) -6/Factory (discovered 5 exits: Fac / Low x2 / *Ext x2) -6/Extension (discovered 3 exits: *Fac x2 / *Cet) -6/Cetus (discovered 2 exits: *Fac / *Arc) -6/Archives (discovered 3 exits: *Fac / *Hub x2) -6/Hub_04(d) (discovered 4 exits: *Fac x4) -5/Factory (discovered 4 exits: *Fac x4) -4/Factory -4/DSF -3/Research (discovered 2 exits: *Arm / [Tes]) -3/Armory (discovered 2 exits: *Res x2) -2/Research (discovered 2 exits: *Acc / [Qua]) -1/Access (discovered 2 exits: *Sur / Com) To Epsilon Eridani History --------- Turn | Location | Event 2 | -11/Scrapyard | Met Revision 17 2 | -11/Scrapyard | Discovered new exit (range 16) 9 | -11/Scrapyard | Upgraded with Propulsion slot (x1) 19 | -11/Scrapyard | Upgraded with Weapon slot (x1) 132 | -11/Scrapyard | Entered Materials 279 | -10/Materials | Discovered new exit (range 14) 338 | -10/Materials | Build established: Mutant 346 | -10/Materials | Entered Mines 378 | -10/Mines | Met a Derelict bent on vengeance 501 | -10/Mines | Learned location of Zion (-7) 544 | -10/Mines | Discovered new exit (range 5) 573 | -10/Mines | Received a Rocket Launcher from a helpful Derelict 598 | -10/Mines | Discovered new exit (range 13) 727 | -10/Mines | Learned Materials trap positions 762 | -10/Mines | Joined a pair of Derelicts in attacking an 0b10 outpost 1183 | -10/Mines | Build established: Scavenger-Mutant 1350 | -10/Mines | Deemed a non-threat by the Exiles lab entrance 1350 | -10/Mines | Discovered new exit (range 5) 1354 | -10/Mines | Entered Exiles 1383 | -10/Exiles | Met 8R-AWN 1404 | -10/Exiles | Met EX-HEX 1436 | -10/Exiles | Met EX-BIN 1453 | -10/Exiles | Aligned with FarCom system 1454 | -10/Exiles | Given EX-Vault access code 1481 | -10/Exiles | Opened EX-Vault 1491 | -10/Exiles | Found Field Lobotomy Kit 1520 | -10/Exiles | Warned to stay clear of 0b10 Research branches 1561 | -10/Exiles | Met EX-DEC 1622 | -10/Exiles | Discovered new exit (range 11) 1634 | -10/Exiles | Left Exiles lab with Field Lobotomy Kit 1634 | -10/Exiles | Entered Mines 1636 | -9/Mines | Reached level 2 1636 | -9/Mines | Upgraded with Propulsion slot (x1) 1665 | -9/Mines | Discovered new exit (range 5) 1699 | -9/Mines | Entered Materials 1700 | -8/Materials | Identified exit to Factory 1701 | -8/Materials | Loaded intel: 20 trap records 1701 | -8/Materials | Reached level 3 1715 | -8/Materials | Reached level 4 1774 | -8/Materials | Discovered exit to Factory (range 18) 1785 | -8/Materials | Upgraded with Weapon slot (x1) 1790 | -8/Materials | Entered Factory 1792 | -7/Factory | Reached level 5 1792 | -7/Factory | Upgraded with Utility slot (x1) 1803 | -7/Factory | Identified exit to Lower Caves 1912 | -7/Factory | Discovered new exit (range 15) 1974 | -7/Factory | Entered another Factory area 1974 | -6/Factory | Accompanied by 1 ally 1976 | -6/Factory | Reached level 6 1978 | -6/Factory | Upgraded with Utility slot (x1) 2003 | -6/Factory | Spotted B-75 Beast 2004 | -6/Factory | Assimilated B-75 Beast with FLK Orb 2298 | -6/Factory | Build established: Hacker-Scout 2377 | -6/Factory | Identified exit to Lower Caves 2377 | -6/Factory | Identified exit to Extension 2377 | -6/Factory | Discovered new exit (range 11) 2717 | -6/Factory | Entered Extension 2717 | -6/Extension | Accompanied by 1 ally 2719 | -6/Extension | Reached level 7 2742 | -6/Extension | Spotted B-75 Beast 2750 | -6/Extension | Discovered new exit (range 20) 2813 | -6/Extension | Assimilated B-75 Beast with FLK Orb 2816 | -6/Extension | Spotted B-75 Beast 2818 | -6/Extension | Assimilated B-75 Beast with FLK Orb 2849 | -6/Extension | Rescued a captive Derelict 2851 | -6/Extension | Rescued a captive Derelict 2909 | -6/Extension | Rescued a captive Derelict 2909 | -6/Extension | Rescued a captive Derelict 2917 | -6/Extension | Rescued a captive Derelict 2919 | -6/Extension | Rescued a captive Derelict 2920 | -6/Extension | Rescued a captive Derelict 3020 | -6/Extension | Reached level 8 3067 | -6/Extension | First assault squad dispatched 3088 | -6/Extension | Reached level 9 3112 | -6/Extension | Reached level 10 3114 | -6/Extension | Upgraded with Utility slot (x1) 3123 | -6/Extension | Disrupted transfer network 3139 | -6/Extension | Discovered new exit (range 18) 3139 | -6/Extension | Discovered new exit (range 18) 3324 | -6/Extension | Entered Cetus 3324 | -6/Cetus | Accompanied by 5 allies 3326 | -6/Cetus | Reached level 11 3333 | -6/Cetus | Spotted Cetus Guard 3333 | -6/Cetus | Spotted Cetus Guard 3333 | -6/Cetus | Assimilated Cetus Guard with FLK Orb 3336 | -6/Cetus | Assimilated Cetus Guard with FLK Orb 3340 | -6/Cetus | Spotted Cetus Guard 3340 | -6/Cetus | Allies destroyed Cetus Guard 3384 | -6/Cetus | Upgraded with Utility slot (x1) 3407 | -6/Cetus | Discovered new exit (range 17) 3495 | -6/Cetus | Spotted Cetus Guard 3495 | -6/Cetus | Spotted Cetus Guard 3520 | -6/Cetus | Spotted Cetus Guard 3520 | -6/Cetus | Spotted Cetus Guard 3522 | -6/Cetus | Allies destroyed Cetus Guard 3522 | -6/Cetus | Allies destroyed Cetus Guard 3532 | -6/Cetus | Allies destroyed Cetus Guard 3536 | -6/Cetus | Reached level 12 3536 | -6/Cetus | Destroyed Cetus Guard 3541 | -6/Cetus | Discovered new exit (range 17) 3656 | -6/Cetus | Entered Archives 3656 | -6/Archives | Accompanied by 4 allies 3664 | -6/Archives | Met Zhirov 3666 | -6/Archives | Discovered new exit (range 18) 3670 | -6/Archives | Reinforcements dispatched to Archives 3671 | -6/Archives | Unable to access archive contents 3699 | -6/Archives | Discovered new exit (range 18) 3699 | -6/Archives | Reached level 13 3706 | -6/Archives | Discovered new exit (range 18) 3715 | -6/Archives | Reinforcements dispatched to Archives 3717 | -6/Archives | Zhirov warped through subspace 3724 | -6/Archives | Entered Hub_04(d) 3729 | -6/Hub_04(d) | Identified exit to Factory 3754 | -6/Hub_04(d) | Lost 3 allies 3786 | -6/Hub_04(d) | Reached level 14 3865 | -6/Hub_04(d) | Spotted B-75 Beast 3874 | -6/Hub_04(d) | Entered Factory 3876 | -5/Factory | Reached level 15 3881 | -5/Factory | Upgraded with Weapon slot (x1) 3917 | -5/Factory | Core integrity fell below 50% 3997 | -5/Factory | Core integrity fell below 20% 4019 | -5/Factory | Reached level 16 4040 | -5/Factory | Destroyed 8 combat bots 4084 | -5/Factory | Upgraded with Propulsion slot (x1) 4088 | -5/Factory | Identified exit to Factory 4149 | -5/Factory | Repaired Broken Imp. Cesium-ion Thruster 4157 | -5/Factory | Entered another Factory area 4158 | -4/Factory | Core integrity fell below 50% 4159 | -4/Factory | Reached level 17 4195 | -4/Factory | Identified exit to DSF 4195 | -4/Factory | Entered DSF 4214 | -4/DSF | Discovered new exit (range 17) 4218 | -4/DSF | Entered Research 4219 | -3/Research | Core integrity fell below 50% 4220 | -3/Research | Reached level 18 4220 | -3/Research | Reached level 19 4226 | -3/Research | Discovered new exit (range 6) 4229 | -3/Research | Discovered new exit (range 17) 4238 | -3/Research | Entered Armory 4256 | -3/Armory | Reached level 20 4260 | -3/Armory | Build established: Wizard-Scout 4326 | -3/Armory | Core integrity fell below 20% 4378 | -3/Armory | Spotted B-86 Titan 4390 | -3/Armory | Upgraded with Utility slot (x1) 4413 | -3/Armory | Identified exit to Research 4428 | -3/Armory | Lost 6 allies 4439 | -3/Armory | Reached level 21 4596 | -3/Armory | Entered Research 4597 | -2/Research | Core integrity fell below 50% 4597 | -2/Research | Core integrity fell below 20% 4598 | -2/Research | Reached level 22 4611 | -2/Research | Discovered new exit (range 13) 4613 | -2/Research | Discovered new exit (range 19) 4630 | -2/Research | Build established: Hacker-Ninja 4672 | -2/Research | Entered Access 4673 | -1/Access | Core integrity fell below 50% 4674 | -1/Access | Reached level 23 4674 | -1/Access | Upgraded with Power slot (x1) 4710 | -1/Access | Repaired Cld. Cesium-ion Thruster 4768 | -1/Access | Reached level 24 4841 | -1/Access | Spotted B-99 Colossus 4844 | -1/Access | Core integrity fell below 20% 4882 | -1/Access | Upgraded with Propulsion slot (x1) 4959 | -1/Access | First assault squad dispatched 4972 | -1/Access | Identified exit to Surface 4975 | -1/Access | Discovered new exit (range 14) 4991 | -1/Access | Identified exit to Command 5103 | *** | Escaped! Last Messages --------------- 05040_ Acquired 112 matter. 05042_ Dropped Hvy. Gauss Cannon. 05043_ Acquired Adv. Hacking Suite. 05043_ K-01 Serf collects debris. 05045_ Triggered Blade Trap. 05045_ Massive razor-sharp blades shoot up from within the floor. 05045_ Adv. Melee Analysis Suite severed. 05045_ Imp. Reaction Control System severed. 05045_ Acquired Imp. Reaction Control System. 05046_ R-10 Processor collects Hvy. Gauss Cannon. 05048_ K-01 Serf collects debris. 05085_ Connecting with Garrison Access... >>Seal Access door sealed. 05101_ Connecting with Terminal... >>Open(Door) Sealed Barrier opened. 05102_ The Access Shell folds into the floor. Map ----- +----------------------------------------------------+ | ?????????????????????????????????????????????????? | | ?????????????????????????????????????????????????? | | ?????????????????????????????????????????????????? | | ?????????????????????????????????????????????????? | | ?????????????????????????????????????????????????? | | ?????????????????????????????????????????????????? | | ?????????????????????????????????????????????????? | | ?????????????????????????????????????????????????? | | ?????????????????????????????????????????????????? | | ?????????????????????????????????????????????????? | | ???????? ?????????????? ?????????????????????????? | | ?????? ?? ????????????? ?????????????????????????? | | ????? ??????????#???????????? ???????????????????? | | ???#??##??##??#??????????????????? ??????????????? | | ????????#????#??#??#?BB ???BB??????? ????????????? | | ???#???##?##?#?#???#?BB????BB???????#????????????? | | ?#?#?#?#????###??#??? ???????????????????????????? | | ##??#??#???##?##?#?#"??""?????#?###??????????????? | | ?????#####?######?##"?"??"???????????????????????? | | #?#?##?##???######???"???""??????????????????????? | | #######???#####?#?##""""""""""#?#??? ??##????????? | | ? ##?############## ##???????????#?????? | | ? #?## #?# #?#?????????#??????? | | ??#?## #?# #??????? # ????????? | | ? ?#?# ### "" #?#? ? ????????????? | | ??#?# ### "@ ##?? ? ??? ????????? | | #?## ### ##??? ???#????#????? | | ?#### ### #??????? ??????????? | | + + "" ### ##? ??????????????? | | # # "" ### ###??? ???? ? ?????? | | #### # """"""## ##?? ?????????????? | | # """"""###"" ##? ??????????????? | | + "" #?#"" #?##???#??#?? ?????? | | #### # "" #?#"" ##?????#???? ??????? | | ?? + + ###T ###?????##? ???????? | | # # ###"" ##??##????? ???????? | | ?# # ###"" ##?##?#?##?????????? | | ? # ###########"##"" ####?#??#?#????????? | | ! # ??????????? | | ! ?# k ????????? | | ######### ######################/###??#???????? | | ###?#?#?# ##?#???#??#####??#?? ??? ????????? | | #?#?##### ##??#? ? ? ??####????????????????? | | ?##?####? ?#??#?? ? ??#???#?? ??????????????? | | ! #????####??#?#? ??? ??? ##??#? ?? ????????????? | | ####??### ??#?# "?" ??####?? ???? ??????????? | | ##########?# #??#? "?" ??##??#?? ????????????? | | ? ? ? ?+? " ?????####????????????????? | | ?????? ######???## ??? ?#? ????? ????????????? | | ?? ?? ?#####?#??# ?? ???? ?#??????#??????????? | +----------------------------------------------------+ Best States ------------- Heat Dissipation 55 Energy Generation 43 Energy Capacity 350 Matter Stores 500 Matter Capacity 500 Sight Range 18 Robot Scan Range 16 Terrain Scan Range 20 Terrain Scan Density 810 Jamming Range 14 Armor Coverage 225 Evasion (%) 76 Melee Accuracy 13 Launcher Accuracy 20 Recoil Reduction 2 Offensive Hacking 56 Defensive Hacking 27 Item Schematics ----------------- Rocket Launcher | -8/Materials | Scanalyzed Hvy. Rocket Launcher | -6/Factory | Scanalyzed Impulse Thruster | -6/Factory | Hacked Lgt. Particle Reactor | -4/Factory | Hacked Robot Schematics ------------------ None Fabricated ------------ Nothing Alien Tech Used ----------------- None Achievements -------------- Dodgeball, But With Guns Challenges ------------ None RPGLIKE | -11 -10 -10 -10 -9 -8 -7 -6 -6 -6 -6 -6 -5 -4 -4 -3 -3 -2 -1 --------- Run | Yrd Mat Min Exi Min Mat Fac Fac Ext Cet Arc Hub Fac Fac DSF Res Arm Res Acc Levels Raised 23 | . . . . 1 2 1 1 4 2 1 1 2 1 . 2 2 1 2 XP Earned 38998 | 3000 . 950 350 1275 2095 1500 2635 5931 1811 1783 1185 3104 1500 1350 2000 2981 2000 3548 XP Spent 37500 | 2700 50 . . 1600 3145 835 2170 5925 1400 . 1380 6155 250 1250 . 4340 3300 3000 Upgrades 90 | 6 1 . . 4 10 3 5 14 1 . 3 15 1 1 . 13 10 3 Power Slot 1 | . . . . . . . . . . . . . . . . . . 1 Propulsion Slot 4 | 1 . . . 1 . . . . . . . 1 . . . . . 1 Utility Slot 5 | . . . . . . 1 1 1 1 . . . . . . 1 . . Weapon Slot 3 | 1 . . . . 1 . . . . . . 1 . . . . . . Core Integrity 36 | . . . . . 1 1 . 1 . . . 11 . . . 12 10 . Heat Dissipation 5 | . . . . . 2 . . 3 . . . . . . . . . . Matter Storage 4 | . . . . . . . . 4 . . . . . . . . . . Mass Support 4 | . . . . 2 . . 1 . . . . 1 . . . . . . Inventory Capacity 5 | 3 . . . . . . . 1 . . . . . 1 . . . . Sight Range 2 | . . . . 1 1 . . . . . . . . . . . . . Sensor Range 1 | . 1 . . . . . . . . . . . . . . . . . Terrain Scan Density 6 | . . . . . . . 3 . . . 2 . 1 . . . . . Melee Accuracy 4 | . . . . . 1 1 . 2 . . . . . . . . . . Hack Attack % 6 | 1 . . . . 2 . . 1 . . 1 1 . . . . . . Hack Defense % 4 | . . . . . 2 . . 1 . . . . . . . . . 1 Protomatter Created 252 | . . 48 . 26 3 . 61 6 . . . 45 . . . 58 . 5 Integrity Restored 982 | . . 102 . . . . 192 378 28 24 . 84 . . . 174 . . Core 792 | . . 15 . . . . 168 327 . 24 . 84 . . . 174 . . Parts 190 | . . 87 . . . . 24 51 28 . . . . . . . . . Protomatter Decayed 499 | . . 58 . . . . 74 42 173 57 . . . . . 95 . . Game ------ Seed ShieldContainmentNanovents Manual? 0 Play Time 02:38:36 Cumulative 79.7 hours Start 2025.03.20 @ 00:28:06 End 2025.03.20 @ 03:11:43 Sessions 1 Manual Loads 0 Difficulty Rogue Special Mode Winter2019/RPGLIKE Game No. 29 Rogue 29 Adventurer 0 Explorer 0 Win Type 0 Total 2 Types 2/0/0/0/0/0/0/0/0 Lore% 31 Gallery% 47 Achievement% 39 Wizard Run 0 Options --------- Layout 1 ASCII 0 Keyboard 0 Movement Mouse Keybinds 0 Fullscreen 1 Font 32/SmallcapsGlow Map View 50x35 Zoom Use 0% Tactical HUD 1 Map Filters NONE Filters NONE Steam 1 RUN: ccf737b5-4d6a-4d0f-b744-933820087733